Cogmind - Beta 17 @@@ ROGUE MODE // 2026.08.02 @ 13:10:53 // Winter2022/Polymind Player: Minty Result: Destroyed by H-55 Commando with Gauss Rifle Performance ------------- Evolutions (0) 0 Regions Visited (4) 800 Robots Destroyed (10) 50 Value Destroyed (316) 316 Prototype IDs (0) 0 Alien Tech Used (0) 0 Bonus (10655) 10655 TOTAL SCORE: 11441 Bonus ------- Polymind Skill 1555 Prayed to X0-1V1 5000 Major X0-1V1 Interference 4100 Cogmind --------- Core Integrity 0/150 Matter 94/100 Energy 215/215 System Corruption 31% Temperature Cool (0) Movement Treading (160) Location -9/Recycling Parts ------- > --- POWER (1) -------- Improved Ion Engine > --- PROPULSION (2) --- Light Treads Light Treads > --- UTILITY (3) ------ Heat Sink Heat Sink Light Armor Plating > --- WEAPON (2) ------- Beam Rifle Heavy Assault Rifle > --- INVENTORY (1) ---- (None) Peak State ------------ > --- POWER ------------ Neutrino Core > --- PROPULSION ------- Myomer Leg Myomer Leg > --- UTILITY ---------- Targeting Computer Targeting Computer Armor Integrity Analyzer Phase Shifter > --- WEAPON ----------- Battle Rifle Bore Cannon > --- INVENTORY -------- (None) [Rating: 38] Favorites ----------- Power Neutrino Core Engine Light Ion Engine Power Core Neutrino Core Propulsion Wheel Treads Light Treads Leg Myomer Leg Wheel Wheel Utility Targeting Computer Device Heat Sink Processor Targeting Computer Protection Light Armor Plating Weapon Small Laser Energy Gun Small Laser Ballistic Gun Battle Rifle Ballistic Cannon Bore Cannon Special Weapon Mining Laser Build | -11 -10 -10 -10 -9 ------- Run | Yrd Mat Min Sub Rec Slots Evolved . | . . . . . Power . | . . . . . Propulsion . | . . . . . Utility . | . . . . . Weapon . | . . . . . Parts Attached . | . . . . . Power . | . . . . . Engine . | . . . . . Core . | . . . . . Reactor . | . . . . . Propulsion . | . . . . . Treads . | . . . . . Leg . | . . . . . Wheel . | . . . . . Hover . | . . . . . Flight . | . . . . . Utility . | . . . . . Device . | . . . . . Storage . | . . . . . Processor . | . . . . . Hackware . | . . . . . Protection . | . . . . . Artifact . | . . . . . Weapon . | . . . . . Energy Gun . | . . . . . Energy Cannon . | . . . . . Ballistic Gun . | . . . . . Ballistic Cannon . | . . . . . Launcher . | . . . . . Special Weapon . | . . . . . Impact Weapon . | . . . . . Slashing Weapon . | . . . . . Piercing Weapon . | . . . . . Special Melee Weapon . | . . . . . Unidentified Prototypes . | . . . . . Parts Lost 2 | . . . 2 . Power 1 | . . . 1 . Propulsion 1 | . . . 1 . Utility . | . . . . . Weapon . | . . . . . Highest Loss Streak 2 | . . . 2 . To Critical Strikes . | . . . . . Average Backups . | . . . . . Power . | . . . . . Propulsion . | . . . . . Utility . | . . . . . Weapon . | . . . . . Tool/Special . | . . . . . Unused Backups . | . . . . . Power . | . . . . . Propulsion . | . . . . . Utility . | . . . . . Weapon . | . . . . . Tool/Special . | . . . . . Average Slot Usage (%) 89 | . 100 95 88 82 Engine 8 | . 16 15 5 6 Core 3 | . . . 6 . Treads 2 | . . . . 14 Leg 14 | . . . 25 8 Wheel 8 | . 33 31 . . Device 20 | . 33 31 13 22 Processor 10 | . . . 19 . Protection 1 | . . . . 6 Energy Gun 6 | . . . 7 15 Ballistic Gun 3 | . . . 4 6 Ballistic Cannon 2 | . . . 4 . Special Weapon 4 | . 16 15 . . Peak Build Rating 38 | 8 8 8 38 11 Average Rating 15 | 4 8 8 21 7 On Entrance 5 | . 8 8 8 3 Avg Prop Armor Cover (%) 19 | . . . 19 19 Naked Turns 13 | . . . 13 . Heaviest Build 26 | 6 6 6 26 18 Greatest Support 50 | 20 20 20 50 40 Greatest Overweight (x) 1 | . . . 1 . Average Overweight (x) . | . . . . . Largest Inventory Capacity 1 | . . . 1 1 Average Capacity . | . . . . 1 Most Carried . | . . . . . Average Carried . | . . . . . Final Capacity 1 | . . . 1 1 Final Carried . | . . . . . Class Distribution -------------------- 31% | Hunter 27% | Grunt 26% | Tunneler 11% | Sentry Dominant Class ---------------- Tunneler | -10/Materials Tunneler | -10/Mines Hunter | -10/Subcaves Sentry | -9/Recycling Resources | -11 -10 -10 -10 -9 ----------- Run | Yrd Mat Min Sub Rec Matter Collected 42 | . . . 42 . Remotely . | . . . . . Salvage Created 104 | . . . 104 . Parts 19 | . . . 19 . Haulers Intercepted . | . . . . . Recyclers Shooed . | . . . . . Parts Field Recycled . | . . . . . Retrieved Matter . | . . . . . Parts Self-Destructed 23 | . . . 23 . Prevented . | . . . . . Parts Restored . | . . . . . Kills | -11 -10 -10 -10 -9 ------- Run | Yrd Mat Min Sub Rec Combat Hostiles Destroyed 10 | . . . 9 1 Guns 8 | . . . 7 1 Cannons 2 | . . . 2 . Classes Destroyed 3 | . . . 3 . Swarmer 4 | . . . 4 . Grunt 4 | . . . 3 1 Subdweller 2 | . . . 2 . Best Kill Streak 4 | . . . 4 1 Combat Bots Only 4 | . . . 4 1 Max Kills in Single Turn 1 | . . . 1 1 Gunslinging . | . . . . . Exploded . | . . . . . Melee . | . . . . . Uniques/NPCs Destroyed . | . . . . . Combat | -11 -10 -10 -10 -9 -------- Run | Yrd Mat Min Sub Rec Hostile Shots Fired 99 | . . . 96 3 Missed 44 | . . . 44 . Hits 55 | . . . 52 3 Projectile 55 | . . . 52 3 Critical Strikes 1 | . . . . 1 Damage Taken 540 | . . . 491 49 Core 165 | . . . 145 20 Absorbed by Shields . | . . . . . Ignored by Resistances 9 | . . . 9 . Core Remaining (%) 100 | 100 . . . . Volleys Fired 27 | . . . 25 2 Largest 2 | . . . 2 2 Hottest 79 | . . . 73 79 Shots Fired 36 | . . . 32 4 Gun 30 | . . . 26 4 Cannon 6 | . . . 6 . Launcher . | . . . . . Special . | . . . . . Kinetic 14 | . . . 12 2 Thermal 22 | . . . 20 2 Explosive . | . . . . . Electromagnetic . | . . . . . Robot Hit Streak 6 | . . . 6 5 Robot Miss Streak 3 | . . . 3 2 Penetration Max . | . . . . . Secondary Targets . | . . . . . Shots Hit Robots 22 | . . . 21 1 Core Hits 13 | . . . 12 1 Critical Kills 1 | . . . 1 . Critical Parts Destroyed . | . . . . . Critical Strikes 1 | . . . 1 . Destroy 1 | . . . 1 . Melee Attacks . | . . . . . Impact . | . . . . . Slashing . | . . . . . Piercing . | . . . . . Sneak Attacks . | . . . . . Combat Hostiles . | . . . . . Follow-up Attacks . | . . . . . Damage Inflicted 290 | . . . 274 16 Guns 215 | . . . 199 16 Cannons 62 | . . . 62 . Explosions . | . . . . . Melee . | . . . . . Ramming 13 | . . . 13 . Kinetic 112 | . . . 112 . Thermal 165 | . . . 149 16 Explosive . | . . . . . Electromagnetic . | . . . . . Impact . | . . . . . Slashing . | . . . . . Piercing . | . . . . . Highest Corruption 31 | . . . 12 31 Average Corruption 14 | . . . 12 19 Corruption Purged . | . . . . . Corruption Blocked . | . . . . . Effects 10 | . . . 6 4 Message Errors 4 | . . . 2 2 Matter Fused 1 | . . . 1 . Heat Flow Errors 1 | . . . 1 . Energy Discharges 3 | . . . 1 2 Misdirections 1 | . . . 1 . Overload Shots . | . . . . . Overflow Damage . | . . . . . Projectiles . | . . . . . Explosions . | . . . . . Melee . | . . . . . Knockbacks . | . . . . . Impact . | . . . . . Kinetic . | . . . . . Secondary . | . . . . . Self-Inflicted Damage . | . . . . . Shots . | . . . . . Rammed . | . . . . . Targets Rammed 6 | . . . 6 . Kicked 6 | . . . 6 . Crushed . | . . . . . Highest Temperature 261 | . . . 261 1 Average Temperature 92 | . . . 95 1 Received Heat Transfer 204 | . . . 204 . Siege Activations . | . . . . . Martial Activations . | . . . . . Shielding Activations . | . . . . . Robots Disrupted . | . . . . . Combat Hostiles . | . . . . . Robots Corrupted . | . . . . . Combat Hostiles . | . . . . . Parts Fried . | . . . . . Impact Corruptions . | . . . . . Robots Melted . | . . . . . Combat Hostiles . | . . . . . Parts Melted . | . . . . . Heat Transferred 362 | . . . 325 37 Parts Sabotaged . | . . . . . Parts Stolen . | . . . . . Parts Stripped . | . . . . . Power Chain Reactions . | . . . . . Alert | -11 -10 -10 -10 -9 ------- Run | Yrd Mat Min Sub Rec Maximum Alert Level . | . . . . . Low Security (%) 100 | 100 100 100 . 100 Level 1 . | . . . . . Level 2 . | . . . . . Level 3 . | . . . . . Level 4 . | . . . . . Level 5 . | . . . . . High Security . | . . . . . Max Security . | . . . . . Peak Influence 69 | . 50 15 . 69 Initial 69 | . . 15 . 69 Average 24 | . 11 4 . 48 Influence Increases 315 | . 50 . 245 20 Destroy 0b10 Robot/C 160 | . . . 140 20 Select Force Hacks 50 | . 50 . . . Lose Combat Pursuer 105 | . . . 105 . Influence Decreases 291 | . 10 40 100 141 Entered New Map 101 | . . 25 . 76 Time Decay 165 | . 10 15 80 60 Lost Part 20 | . . . 20 . Miscellaneous 5 | . . . . 5 Squads Dispatched 1 | . 1 . . . Investigation 1 | . 1 . . . Extermination . | . . . . . Reinforcement . | . . . . . Assault . | . . . . . Garrison . | . . . . . Intercept . | . . . . . Searches Triggered . | . . . . . Construction Impeded . | . . . . . Haulers Reinforced . | . . . . . Active Scanning Responses . | . . . . . Cargo Convoy Interrupts . | . . . . . Stealth | -11 -10 -10 -10 -9 --------- Run | Yrd Mat Min Sub Rec Distress Signals . | . . . . . Communications Jammed . | . . . . . Distress Signals . | . . . . . Times Spotted 24 | . . . 20 4 Peak Tracking Total 5 | . . . 5 . Tactical Retreats 3 | . . . 3 . Traps | -11 -10 -10 -10 -9 ------- Run | Yrd Mat Min Sub Rec Traps Triggered . | . . . . . Indirectly . | . . . . . Trap Hack Attempts . | . . . . . Triggered . | . . . . . Disarmed . | . . . . . Reprogrammed . | . . . . . Reused . | . . . . . Traps Extracted . | . . . . . Installed . | . . . . . Triggered . | . . . . . Machines | -11 -10 -10 -10 -9 ---------- Run | Yrd Mat Min Sub Rec Machines Disabled . | . . . . . Max in Single Turn . | . . . . . Machines Repaired . | . . . . . Machines Dismantled . | . . . . . Machines Sabotaged 1 | . 1 . . . Overloaded Fab Kills . | . . . . . Hacking | -11 -10 -10 -10 -9 --------- Run | Yrd Mat Min Sub Rec Machines Accessed 2 | . 1 . . 1 Terminals 2 | . 1 . . 1 Fabricators . | . . . . . Repair Stations . | . . . . . Recycling Units . | . . . . . Scanalyzers . | . . . . . Garrison Access . | . . . . . Total Hacks 6 | . 3 . . 3 Successful 4 | . 3 . . 1 Failed 2 | . . . . 2 Catastrophic . | . . . . . Database Lockouts . | . . . . . Manual 2 | . 2 . . . Terminals 6 | . 3 . . 3 Fabricators . | . . . . . Repair Stations . | . . . . . Recycling Units . | . . . . . Scanalyzers . | . . . . . Garrison Access . | . . . . . Terminal Hacks 3 | . 2 . . 1 Alert Level 1 | . . . . 1 Locate Traps 1 | . 1 . . . Zone Layout 1 | . 1 . . . Fabricator Hacks . | . . . . . Repair Station Hacks . | . . . . . Recycling Unit Hacks . | . . . . . Scanalyzer . | . . . . . Garrison Access Hacks . | . . . . . Unauthorized Hacks 1 | . 1 . . . Terminals 1 | . 1 . . . Sabotage 1 | . 1 . . . Fabricators . | . . . . . Repair Stations . | . . . . . Recycling Units . | . . . . . Scanalyzers . | . . . . . Garrison Access . | . . . . . Data Cores Recovered . | . . . . . Used . | . . . . . Hacking Detections 1 | . . . . 1 Full Trace Events . | . . . . . Feedback Events . | . . . . . Feedback Blocked . | . . . . . Robot Schematics Acquired . | . . . . . Robots Built . | . . . . . Authchips . | . . . . . Time . | . . . . . Total Robot Build Rating . | . . . . . Part Schematics Acquired . | . . . . . Parts Built . | . . . . . Authchips . | . . . . . Time . | . . . . . Total Part Build Rating . | . . . . . Part Studies Acquired . | . . . . . Parts Repaired . | . . . . . Time . | . . . . . Parts Recycled . | . . . . . Recycled Matter . | . . . . . Retrieved Matter . | . . . . . Retrieved Components . | . . . . . Parts Scanalyzed . | . . . . . Part Schematics Acquired . | . . . . . Parts Damaged . | . . . . . Bothacking | -11 -10 -10 -10 -9 ------------ Run | Yrd Mat Min Sub Rec Used RIF Installer . | . . . . . Robots Hacked 2 | . . . 1 1 Non-combat . | . . . . . Combat 2 | . . . 1 1 Robot Hacks Applied 2 | . . . 1 1 find_shortcuts 2 | . . . 1 1 Relay Couplers Released . | . . . . . Fabnet Peak Effective % . | . . . . . Robots Rewired . | . . . . . Allies Hacked . | . . . . . Hacks Repelled . | . . . . . Allies | -11 -10 -10 -10 -9 -------- Run | Yrd Mat Min Sub Rec Total Allies . | . . . . . Largest Group . | . . . . . Highest-Rated Group . | . . . . . Highest-Rated Ally . | . . . . . Total Orders . | . . . . . Ally Attacks . | . . . . . Total Damage . | . . . . . Kills . | . . . . . Allies Corrupted . | . . . . . Allies Melted . | . . . . . X0-1V1 Amusement Gains 8 | . 8 . . . Good Acts 6 | . . 1 5 . Bad Acts 23 | . 1 1 18 3 Intel | -11 -10 -10 -10 -9 ------- Run | Yrd Mat Min Sub Rec Active Infowar (turns) 187 | 4 99 84 . . Terrain 187 | 4 99 84 . . Seismic 187 | 4 99 84 . . Robot Analysis Total 4 | 1 . . 2 1 Derelict Logs Recovered 2 | . . 1 1 . Drone Launches . | . . . . . Drone Recoveries . | . . . . . Exploration | -11 -10 -10 -10 -9 ------------- Run | Yrd Mat Min Sub Rec Turns Passed 696 | 8 99 84 370 135 Spaces Moved 591 | 13 106 101 222 149 Core 126 | 7 . . 19 100 Treads 49 | . . . . 49 Legs 203 | . . . 203 . Wheels 213 | 6 106 101 . . Hover . | . . . . . Flight . | . . . . . Fastest Speed 50 | 50 80 80 50 50 Average Speed 94 | 63 80 80 114 86 Slowest Speed 190 | 80 80 80 190 160 Overloaded Moves . | . . . . . Propulsion Burnouts . | . . . . . Robots Hopped . | . . . . . Potential Cave-ins . | . . . . . Cave-ins Triggered . | . . . . . Exploration Rate (%) 24 | 2 23 32 27 38 Regions Visited 4 Branch Regions 3 Pre-discovered Areas 2 | . . 1 1 . Known Exits Taken . | . . . . . Unknown Exits Taken 4 | 1 1 1 1 . Scrap Searched 1 | . . 1 . . Spaces Dug . | . . . . . Terrain Destroyed 1 | . . . 1 . Melee . | . . . . . Projectile 1 | . . . 1 . AOE . | . . . . . Terrain Rammed . | . . . . . Walls Destroyed . | . . . . . Machines Disabled . | . . . . . Actions | -11 -10 -10 -10 -9 --------- Run | Yrd Mat Min Sub Rec Total 690 | 12 119 103 303 153 Wait 48 | . . . 46 2 Move 587 | 12 105 100 221 149 Hop . | . . . . . Pick Up . | . . . . . Fast Attach . | . . . . . Attach . | . . . . . Detach . | . . . . . Swap . | . . . . . Drop . | . . . . . Fire 27 | . . . 25 2 Melee . | . . . . . Ram 4 | . . . 4 . Kick 6 | . . . 6 . Crush . | . . . . . Escape Stasis . | . . . . . Rewire 1 | . . . 1 . Trap . | . . . . . Miscellaneous 17 | . 14 3 . . Route ------- -11/Scrapyard -10/Materials -10/Mines (discovered 3 exits: [*Mat x2] / [*Sub]) -10/Subcaves -9/Recycling History --------- Turn | Location | Event 1 | -11/Scrapyard | Discovered new exit (range 3) 9 | -11/Scrapyard | Entered Materials 56 | -10/Materials | Prayed at D.C.S.S. Altar Unit 101 | -10/Materials | Discovered new exit (range 9) 108 | -10/Materials | Entered Mines 118 | -10/Mines | Learned location of Mines (-9) 118 | -10/Mines | Discovered new exit (range 9) 140 | -10/Mines | X0-1V1 sent hostile G-34 Mercenary (x3) 166 | -10/Mines | Utility slot count permanently improved by X0-1V1 (+1) 175 | -10/Mines | Discovered new exit (range 11) 188 | -10/Mines | Discovered new exit (range 3) 192 | -10/Mines | Entered Subcaves 282 | -10/Subcaves | Energy capacity permanently improved by X0-1V1 (+200; -100 max core) 297 | -10/Subcaves | Discovered new exit (range 8) 301 | -10/Subcaves | Ambushed by Subdwellers from Twisted Machinery 316 | -10/Subcaves | X0-1V1 activates XOMVISION 325 | -10/Subcaves | X0-1V1 sent you into danger 334 | -10/Subcaves | System corruption reached 10% 343 | -10/Subcaves | X0-1V1 mutated your Propulsion slot to Utility slot 344 | -10/Subcaves | X0-1V1 sent hostile G-34 Mercenary (x5) 379 | -10/Subcaves | X0-1V1 tapped a No Entrance sign 393 | -10/Subcaves | Visited 4L-MR0's lab 397 | -10/Subcaves | Learned location of Zion (-7) 407 | -10/Subcaves | Core integrity fell below 50% 454 | -10/Subcaves | Core integrity fell below 20% 558 | -10/Subcaves | Discovered new exit (range 8) 562 | -10/Subcaves | Entered Recycling 646 | -9/Recycling | System corruption reached 30% 694 | -9/Recycling | X0-1V1 sent you into danger 697 | -9/Recycling | Destroyed by H-55 Commando with Gauss Rifle Last Messages --------------- Current Alert Level: Low Security 00615_ Released control of G-34 Mercenary. 00615_ Took control of Y-45 Defender. 00615_ Extracted analysis data for Y-45 Defender. 00615_ G-34 Mercenary destroyed. 00616_ Acquired 10 Protomatter. 00617_ Sight range returns to normal. 00628_ System corrupted: Energy discharge (-47). 00645_ X0-1V1 brushes you with a corrupting influence (+19 system corruption). 00655_ TJ HGK QAS4QQ/TF6&E= AVLVH26OCHUR #,K1V Prototype Device suddenly appears amidst shimmering waves of color. 00686_ System corrupted: Energy discharge (-86). 00694_ X0-1V1: "Enjoy the ride!" 00695_ H-55 Commando springs to life. 00695_ Penetrated by Slug. 00695_ H-55 Commando springs to life. 00696_ L-31 Rogue springs to life. 00696_ B-36 Bruiser springs to life. 00697_ X0-1V1 snickers! Map ----- +----------------------------------------------------+ | ?????????????????????????????????????????????? | | ?????????????????????????????????????????????? | | ?????????????????????????????????????????????? | | ?????????????????????????????????????????????? | | ?????????????????????????????????????????????? | | ?????????????????????????????????????????????? | | ?????????????????????????????????????????????? | | ?????????????????????????????????????????????? | | ?????????????????????????????????????????????? | | ?????????????????????????????????????????????? | | ?????????????????????????????????????????????? | | ?????????????????????????????????????????????? | | ?????????????????????????????????????????????? | | ?????????????????????????????????????????????? | | ??????????????###########????????????????????? | | ???????????? #????????????????????? | | ???????????# % u db#????????????????????? | | ???????????# r #????????????????????? | | ???????????# h !l #????????????????????? | | ???????????# ! ! +????????????????????? | | ???????????#!ur u #????????????????????? | | ???????????# r #???????????????????## | | ???????????# ] ! #???????????????????# | | ???????????# h #???????????????????# | | ???????????# % #??????????????????## | | ???????????# i Y #???????????????????" | | ???????????#! [ #???????????????????T | | ???????????#####+########???????????????????? | | ?????????????????????????????????????????????? | | ?????????????????????????????????????????????? | | ????????????????????????????????????????#????? | | ????????????????????????????????????????# #### | | ????????????????????????????????????????# | | ??#####+##+##???????????????????????????# | | ??# ??????????????????????#T## """ | | ??#/ #?????????????????????? ! """ | | ??# ! =% !#?????????????????????#### """ | | ??# /#????????????????????????# | | ??# #????????????????????????# | | ??# #????????????????????????# | | ??# % #????????????????????????# | | ??# ] +?????????????????? | | ??# ????????????????????? ########## | | ??# ! ?????????????????????????????????? | | ??# ! ???????????????????????????????????? | | ??? ?????????????????????????????????????? | | ????#+#??????????????????????????????######### | | ????# #??????????????????????????????# | | ???## ##########?????????????????????# | | ???# + #?????????????????????# | +----------------------------------------------------+ Best States ------------- Heat Dissipation 42 Energy Generation 24 Energy Capacity 1665 Matter Stores 250 Matter Capacity 650 Sight Range 20 Terrain Scan Range 16 Terrain Scan Density 10 Armor Coverage 150 Resistance: KI 25 Resistance: EX 50 Resistance: I 25 Phase Shifting 5 Evasion (%) 60 Targeting Accuracy 10 Armor Integrity Analysis 30 Recoil Reduction 2 Item Schematics ----------------- None Robot Schematics ------------------ None Fabricated ------------ Nothing Repaired ---------- Nothing Studied --------- None Alien Tech Used ----------------- None Achievements -------------- None Challenges ------------ None Polymind | -11 -10 -10 -10 -9 ---------- Run | Yrd Mat Min Sub Rec Hosts 4 | 1 . . 2 1 Combat Hostiles 2 | . . . 1 1 Allies 1 | . . . 1 . Unique Host Classes 4 | 1 . . 2 1 Average Host Suspicion 49 | . 9 28 59 67 Unsuspicious Activity 160 | 2 70 15 62 11 Returns to Shadow . | . . . . . Fuzzy Dispatches . | . . . . . Protomatter Created 155 | . . . 145 10 Used 67 | 5 . . 39 23 Decayed 43 | . . . 43 . Highest Spend 24 | 5 . . 24 23 Top 5 Hosts by Kills: G-34 Mercenary (-10/Subcaves: 7) 4V-IBG(h) (-10/Subcaves: 2) Y-45 Defender (-9/Recycling: 1) Game ------ Seed ColdStorageTearclaws Manual? 0 Play Time 00:05:03 Cumulative 1351.1 hours Start 2026.08.02 @ 13:06:16 End 2026.08.02 @ 13:10:53 Sessions 1 Manual Loads 0 Difficulty Rogue Special Mode Winter2022/Polymind Game No. 1653 Rogue 1369 Adventurer 124 Explorer 160 Win Type - Total 68 Types 53/0/9/4/1/0/0/1/0/0 Lore% 93 Gallery% 84 Achievement% 73 Wizard Run 0 Options --------- Layout 0 ASCII 0 Keyboard 1 Movement Numpad Keybinds 0 Fullscreen 2 Font 18/X11 Map View 76x50 Zoom Use 0% Tactical HUD 1 Map Filters NONE Filters NONE Steam 1 RUN: 930e6255-5368-497b-b834-9c08452ca1d3